[Event "Titled Tuesday Blitz October 25 Early 2022"]
[White "Aitbayev, Aslan"]
[Black "Zhigalko, Sergei"]
[WhiteFideId "13704613"]
[BlackFideId "13502956"]
[WhiteElo "2373"]
[BlackElo "2662"]
[Result "1/2-1/2"]
[Round "05"]
[TimeControl "180+1"]
[Date "2022.10.25"]
[WhiteClock "0:00:05"]
[BlackClock "0:00:08"]

1. e4 {[%clk 0:02:59]}  c5 {[%clk 0:03:00]} 2. Nf3 {[%clk 0:02:58]}  Nc6 {[%clk 0:03:00]} 3. Bb5 {[%clk 0:02:58]}  Nf6 {[%clk 0:03:01]} 4. Nc3 {[%clk 0:02:53]}  Qc7 {[%clk 0:03:01]} 5. O-O {[%clk 0:02:36]}  Nd4 {[%clk 0:03:01]} 6. Re1 {[%clk 0:02:32]}  a6 {[%clk 0:03:01]} 7. Bf1 {[%clk 0:02:31]}  e5 {[%clk 0:03:01]} 8. d3 {[%clk 0:02:20]}  h6 {[%clk 0:02:48]} 9. Nxd4 {[%clk 0:02:09]}  cxd4 {[%clk 0:02:48]} 10. Ne2 {[%clk 0:02:01]}  Be7 {[%clk 0:02:35]} 11. c3 {[%clk 0:02:00]}  dxc3 {[%clk 0:02:31]} 12. Nxc3 {[%clk 0:01:58]}  O-O {[%clk 0:02:27]} 13. Be3 {[%clk 0:01:55]}  b5 {[%clk 0:01:59]} 14. Rc1 {[%clk 0:01:50]}  Qb8 {[%clk 0:01:37]} 15. d4 {[%clk 0:01:22]}  d6 {[%clk 0:01:37]} 16. dxe5 {[%clk 0:00:51]}  dxe5 {[%clk 0:01:37]} 17. Nd5 {[%clk 0:00:51]}  Nxd5 {[%clk 0:01:35]} 18. Qxd5 {[%clk 0:00:51]}  Be6 {[%clk 0:01:34]} 19. Qd1 {[%clk 0:00:17]}  Qb7 {[%clk 0:01:12]} 20. b3 {[%clk 0:00:15]}  Rfd8 {[%clk 0:01:02]} 21. Qf3 {[%clk 0:00:14]}  Rac8 {[%clk 0:00:56]} 22. h3 {[%clk 0:00:13]}  Rxc1 {[%clk 0:00:51]} 23. Rxc1 {[%clk 0:00:13]}  Ba3 {[%clk 0:00:51]} 24. Re1 {[%clk 0:00:11]}  Bb4 {[%clk 0:00:48]} 25. Rc1 {[%clk 0:00:12]}  Ba3 {[%clk 0:00:48]} 26. Re1 {[%clk 0:00:11]}  Bb2 {[%clk 0:00:36]} 27. Qg3 {[%clk 0:00:10]}  Kh8 {[%clk 0:00:31]} 28. Qh4 {[%clk 0:00:10]}  Qd7 {[%clk 0:00:29]} 29. Bxh6 {[%clk 0:00:09]}  Kg8 {[%clk 0:00:16]} 30. Re3 {[%clk 0:00:08]}  Bc1 {[%clk 0:00:09]} 31. Rd3 {[%clk 0:00:06]}  Qxd3 {[%clk 0:00:03]} 32. Bxd3 {[%clk 0:00:06]}  Rxd3 {[%clk 0:00:03]} 33. Bxc1 {[%clk 0:00:05]}  Rd1+ {[%clk 0:00:04]} 34. Kh2 {[%clk 0:00:06]}  Rxc1 {[%clk 0:00:05]} 35. Qg5 {[%clk 0:00:05]}  Rc2 {[%clk 0:00:04]} 36. Qxe5 {[%clk 0:00:05]}  Rxf2 {[%clk 0:00:04]} 37. a4 {[%clk 0:00:04]}  Bxb3 {[%clk 0:00:02]} 38. axb5 {[%clk 0:00:05]}  axb5 {[%clk 0:00:03]} 39. Qxb5 {[%clk 0:00:04]}  Be6 {[%clk 0:00:03]} 40. Qb8+ {[%clk 0:00:04]}  Kh7 {[%clk 0:00:03]} 41. Qe5 {[%clk 0:00:04]}  Ra2 {[%clk 0:00:04]} 42. Qh5+ {[%clk 0:00:04]}  Kg8 {[%clk 0:00:05]} 43. Qg5 {[%clk 0:00:04]}  Rc2 {[%clk 0:00:04]} 44. Qd8+ {[%clk 0:00:04]}  Kh7 {[%clk 0:00:04]} 45. Qh4+ {[%clk 0:00:04]}  Kg8 {[%clk 0:00:04]} 46. Qf4 {[%clk 0:00:04]}  Rc4 {[%clk 0:00:04]} 47. Qe5 {[%clk 0:00:04]}  Rc8 {[%clk 0:00:04]} 48. h4 {[%clk 0:00:04]}  Kh7 {[%clk 0:00:02]} 49. Qh5+ {[%clk 0:00:04]}  Kg8 {[%clk 0:00:01]} 50. Qg5 {[%clk 0:00:05]}  Rc4 {[%clk 0:00:01]} 51. Qe5 {[%clk 0:00:04]}  Kh7 {[%clk 0:00:02]} 52. h5 {[%clk 0:00:04]}  Ra4 {[%clk 0:00:03]} 53. Kg3 {[%clk 0:00:04]}  Ra2 {[%clk 0:00:03]} 54. h6 {[%clk 0:00:02]}  Kxh6 {[%clk 0:00:02]} 55. Qf4+ {[%clk 0:00:02]}  Kh7 {[%clk 0:00:03]} 56. Qe5 {[%clk 0:00:03]}  Kg8 {[%clk 0:00:03]} 57. Qb8+ {[%clk 0:00:01]}  Kh7 {[%clk 0:00:03]} 58. Qe5 {[%clk 0:00:02]}  Ra8 {[%clk 0:00:03]} 59. Qh5+ {[%clk 0:00:02]}  Kg8 {[%clk 0:00:03]} 60. Qe5 {[%clk 0:00:03]}  Rc8 {[%clk 0:00:04]} 61. Kh2 {[%clk 0:00:03]}  Re8 {[%clk 0:00:04]} 62. Qg5 {[%clk 0:00:03]}  Bd7 {[%clk 0:00:04]} 63. Qd5 {[%clk 0:00:02]}  Be6 {[%clk 0:00:05]} 64. Qc6 {[%clk 0:00:02]}  Rc8 {[%clk 0:00:05]} 65. Qd6 {[%clk 0:00:02]}  Ra8 {[%clk 0:00:05]} 66. Qc6 {[%clk 0:00:03]}  Rd8 {[%clk 0:00:05]} 67. Qc7 {[%clk 0:00:03]}  Rc8 {[%clk 0:00:05]} 68. Qb7 {[%clk 0:00:03]}  Re8 {[%clk 0:00:05]} 69. Qc7 {[%clk 0:00:04]}  Rf8 {[%clk 0:00:06]} 70. Qd6 {[%clk 0:00:04]}  Rc8 {[%clk 0:00:06]} 71. Qe5 {[%clk 0:00:04]}  Ra8 {[%clk 0:00:06]} 72. Qd4 {[%clk 0:00:04]}  Re8 {[%clk 0:00:06]} 73. Qd6 {[%clk 0:00:04]}  Rf8 {[%clk 0:00:06]} 74. Qc6 {[%clk 0:00:05]}  Rc8 {[%clk 0:00:06]} 75. Qb5 {[%clk 0:00:05]}  Kh7 {[%clk 0:00:06]} 76. Qh5+ {[%clk 0:00:05]}  Kg8 {[%clk 0:00:07]} 77. Qb5 {[%clk 0:00:06]}  Rc4 {[%clk 0:00:07]} 78. Qb8+ {[%clk 0:00:05]}  Kh7 {[%clk 0:00:07]} 79. Qe5 {[%clk 0:00:06]}  g6 {[%clk 0:00:07]} 80. Kg3 {[%clk 0:00:04]}  Ra4 {[%clk 0:00:07]} 81. Kf3 {[%clk 0:00:04]}  Rc4 {[%clk 0:00:07]} 82. Qh2+ {[%clk 0:00:04]}  Kg8 {[%clk 0:00:07]} 83. Qb8+ {[%clk 0:00:04]}  Kg7 {[%clk 0:00:07]} 84. Qe5+ {[%clk 0:00:04]}  Kh7 {[%clk 0:00:07]} 85. Qh2+ {[%clk 0:00:05]}  Kg7 {[%clk 0:00:07]} 86. Qe5+ {[%clk 0:00:05]}  Kh7 {[%clk 0:00:08]} 1/2-1/2


[Site "https://www.chess.com"]

[Event "Titled Tuesday Blitz October 25 Early 2022"]
[White "Andreikin, Dmitry"]
[Black "Vachylia, Andrii"]
[WhiteFideId "4158814"]
[BlackFideId "14137224"]
[WhiteElo "2736"]
[BlackElo "2318"]
[Result "1-0"]
[Round "05"]
[TimeControl "180+1"]
[Date "2022.10.25"]
[WhiteClock "0:00:36"]
[BlackClock "0:00:01"]

1. c4 {[%clk 0:03:00]}  e5 {[%clk 0:02:59]} 2. Nc3 {[%clk 0:03:00]}  Nf6 {[%clk 0:02:59]} 3. Nf3 {[%clk 0:03:01]}  Nc6 {[%clk 0:02:59]} 4. e4 {[%clk 0:03:02]}  Bb4 {[%clk 0:02:57]} 5. d3 {[%clk 0:03:00]}  O-O {[%clk 0:02:51]} 6. a3 {[%clk 0:02:58]}  Bxc3+ {[%clk 0:02:51]} 7. bxc3 {[%clk 0:02:59]}  h6 {[%clk 0:02:50]} 8. g3 {[%clk 0:02:57]}  d6 {[%clk 0:02:50]} 9. Bg2 {[%clk 0:02:58]}  Nh7 {[%clk 0:02:47]} 10. Nh4 {[%clk 0:02:57]}  Ne7 {[%clk 0:02:45]} 11. O-O {[%clk 0:02:55]}  c6 {[%clk 0:02:44]} 12. Rb1 {[%clk 0:02:46]}  d5 {[%clk 0:02:34]} 13. cxd5 {[%clk 0:02:45]}  cxd5 {[%clk 0:02:35]} 14. a4 {[%clk 0:02:41]}  dxe4 {[%clk 0:02:24]} 15. Bxe4 {[%clk 0:02:41]}  Qc7 {[%clk 0:02:15]} 16. Ba3 {[%clk 0:02:32]}  Nf6 {[%clk 0:02:13]} 17. Bg2 {[%clk 0:02:30]}  Rd8 {[%clk 0:02:13]} 18. Re1 {[%clk 0:02:22]}  Nc6 {[%clk 0:01:41]} 19. Rb5 {[%clk 0:02:17]}  a6 {[%clk 0:01:29]} 20. Rc5 {[%clk 0:02:17]}  Bg4 {[%clk 0:01:11]} 21. Qb1 {[%clk 0:02:14]}  Nd7 {[%clk 0:01:04]} 22. Rc4 {[%clk 0:01:53]}  Be6 {[%clk 0:01:00]} 23. Rce4 {[%clk 0:01:53]}  Rac8 {[%clk 0:00:51]} 24. h3 {[%clk 0:01:52]}  Nf6 {[%clk 0:00:34]} 25. R4e2 {[%clk 0:01:52]}  Nd5 {[%clk 0:00:30]} 26. Bb2 {[%clk 0:01:48]}  Nb6 {[%clk 0:00:23]} 27. c4 {[%clk 0:01:40]}  Nxa4 {[%clk 0:00:19]} 28. Bxe5 {[%clk 0:01:40]}  Nxe5 {[%clk 0:00:17]} 29. Rxe5 {[%clk 0:01:40]}  Nc5 {[%clk 0:00:15]} 30. Nf5 {[%clk 0:01:37]}  Nxd3 {[%clk 0:00:12]} 31. Rxe6 {[%clk 0:01:36]}  fxe6 {[%clk 0:00:12]} 32. Rxe6 {[%clk 0:01:37]}  Qxc4 {[%clk 0:00:12]} 33. Qxb7 {[%clk 0:01:32]}  Rc7 {[%clk 0:00:09]} 34. Qb6 {[%clk 0:01:30]}  Qc5 {[%clk 0:00:05]} 35. Nxh6+ {[%clk 0:01:29]}  Kf8 {[%clk 0:00:04]} 36. Rf6+ {[%clk 0:01:07]}  gxf6 {[%clk 0:00:03]} 37. Qxf6+ {[%clk 0:01:08]}  Ke8 {[%clk 0:00:03]} 38. Qe6+ {[%clk 0:01:09]}  Kf8 {[%clk 0:00:02]} 39. Kh2 {[%clk 0:00:36]}  Re7 {[%clk 0:00:01]} 40. Qg8# {[%clk 0:00:36]} 1-0


[Site "https://www.chess.com"]

[Event "Titled Tuesday Blitz October 25 Early 2022"]
[White "Colas, Joshua"]
[Black "Hambleton, Aman"]
[WhiteFideId "2044447"]
[BlackFideId "2606577"]
[WhiteElo "2347"]
[BlackElo "2538"]
[Result "1/2-1/2"]
[Round "05"]
[TimeControl "180+1"]
[Date "2022.10.25"]
[WhiteClock "0:00:07"]
[BlackClock "0:00:04"]

1. Nf3 {[%clk 0:03:00]}  d5 {[%clk 0:02:57]} 2. c4 {[%clk 0:02:55]}  c6 {[%clk 0:02:53]} 3. g3 {[%clk 0:02:52]}  Bf5 {[%clk 0:02:37]} 4. Bg2 {[%clk 0:02:49]}  e6 {[%clk 0:02:36]} 5. O-O {[%clk 0:02:49]}  Nf6 {[%clk 0:02:34]} 6. b3 {[%clk 0:02:49]}  h6 {[%clk 0:02:30]} 7. Bb2 {[%clk 0:02:49]}  Bd6 {[%clk 0:02:30]} 8. d3 {[%clk 0:02:42]}  O-O {[%clk 0:02:30]} 9. Ne5 {[%clk 0:02:34]}  Nbd7 {[%clk 0:02:27]} 10. Nxd7 {[%clk 0:02:30]}  Qxd7 {[%clk 0:01:29]} 11. e4 {[%clk 0:02:26]}  dxe4 {[%clk 0:00:19]} 12. dxe4 {[%clk 0:02:26]}  Bg4 {[%clk 0:00:03]} 13. Qd2 {[%clk 0:02:12]}  Be7 {[%clk 0:00:02]} 14. h3 {[%clk 0:02:05]}  Qxd2 {[%clk 0:00:02]} 15. Nxd2 {[%clk 0:02:05]}  Bh5 {[%clk 0:00:03]} 16. f4 {[%clk 0:02:03]}  Rfd8 {[%clk 0:00:03]} 17. Nf3 {[%clk 0:01:56]}  Bc5+ {[%clk 0:00:03]} 18. Kh2 {[%clk 0:01:56]}  Bxf3 {[%clk 0:00:04]} 19. Rxf3 {[%clk 0:01:54]}  Nxe4 {[%clk 0:00:04]} 20. f5 {[%clk 0:01:39]}  exf5 {[%clk 0:00:02]} 21. Rxf5 {[%clk 0:01:35]}  Bd4 {[%clk 0:00:02]} 22. Bxd4 {[%clk 0:01:23]}  Rxd4 {[%clk 0:00:03]} 23. Rf4 {[%clk 0:01:24]}  f5 {[%clk 0:00:03]} 24. Rxf5 {[%clk 0:01:22]}  Nf6 {[%clk 0:00:04]} 25. Rf2 {[%clk 0:01:18]}  Rad8 {[%clk 0:00:04]} 26. Re1 {[%clk 0:01:18]}  Rd2 {[%clk 0:00:04]} 27. Ree2 {[%clk 0:01:12]}  Rxe2 {[%clk 0:00:04]} 28. Rxe2 {[%clk 0:01:13]}  Kf7 {[%clk 0:00:04]} 29. Bf3 {[%clk 0:01:12]}  Rd3 {[%clk 0:00:04]} 30. Kg2 {[%clk 0:01:11]}  a5 {[%clk 0:00:05]} 31. Kf2 {[%clk 0:01:06]}  Rc3 {[%clk 0:00:05]} 32. Re3 {[%clk 0:00:56]}  Rc2+ {[%clk 0:00:05]} 33. Re2 {[%clk 0:00:56]}  Rxe2+ {[%clk 0:00:06]} 34. Kxe2 {[%clk 0:00:56]}  Ke6 {[%clk 0:00:06]} 35. Kd3 {[%clk 0:00:55]}  Ke5 {[%clk 0:00:07]} 36. c5 {[%clk 0:00:54]}  Nd5 {[%clk 0:00:02]} 37. a3 {[%clk 0:00:53]}  g6 {[%clk 0:00:01]} 38. Bg4 {[%clk 0:00:53]}  Nc7 {[%clk 0:00:02]} 39. Bc8 {[%clk 0:00:52]}  Ne6 {[%clk 0:00:02]} 40. b4 {[%clk 0:00:51]}  axb4 {[%clk 0:00:02]} 41. axb4 {[%clk 0:00:52]}  Nd8 {[%clk 0:00:02]} 42. Kc4 {[%clk 0:00:40]}  Ke4 {[%clk 0:00:02]} 43. b5 {[%clk 0:00:40]}  cxb5+ {[%clk 0:00:01]} 44. Kxb5 {[%clk 0:00:40]}  Kf3 {[%clk 0:00:01]} 45. Kb6 {[%clk 0:00:30]}  Kxg3 {[%clk 0:00:02]} 46. Kc7 {[%clk 0:00:31]}  Nf7 {[%clk 0:00:02]} 47. Kxb7 {[%clk 0:00:24]}  Ne5 {[%clk 0:00:01]} 48. Be6 {[%clk 0:00:19]}  g5 {[%clk 0:00:01]} 49. Kc7 {[%clk 0:00:18]}  h5 {[%clk 0:00:02]} 50. Kd6 {[%clk 0:00:18]}  Kf4 {[%clk 0:00:02]} 51. Ke7 {[%clk 0:00:10]}  Ke4 {[%clk 0:00:02]} 52. Kd6 {[%clk 0:00:10]}  Kf4 {[%clk 0:00:03]} 53. Bd5 {[%clk 0:00:09]}  Kf5 {[%clk 0:00:03]} 54. Bb7 {[%clk 0:00:08]}  Kf4 {[%clk 0:00:03]} 55. Bc8 {[%clk 0:00:06]}  Ke4 {[%clk 0:00:04]} 56. Be6 {[%clk 0:00:07]}  Kf4 {[%clk 0:00:04]} 1/2-1/2


[Site "https://www.chess.com"]

[Event "Titled Tuesday Blitz October 25 Early 2022"]
[White "Costachi, Mihnea"]
[Black "Kuderinov, Kirill"]
[WhiteFideId "1217518"]
[BlackFideId "13701568"]
[WhiteElo "2437"]
[BlackElo "2465"]
[Result "0-1"]
[Round "05"]
[TimeControl "180+1"]
[Date "2022.10.25"]
[WhiteClock "0:00:03"]
[BlackClock "0:00:10"]

1. Nc3 {[%clk 0:03:00]}  d5 {[%clk 0:02:58]} 2. d4 {[%clk 0:02:59]}  Nf6 {[%clk 0:02:57]} 3. Bf4 {[%clk 0:02:58]}  c6 {[%clk 0:02:53]} 4. Qd3 {[%clk 0:02:57]}  g6 {[%clk 0:02:45]} 5. f3 {[%clk 0:02:56]}  Bg7 {[%clk 0:02:44]} 6. e4 {[%clk 0:02:57]}  O-O {[%clk 0:02:39]} 7. O-O-O {[%clk 0:02:55]}  dxe4 {[%clk 0:02:33]} 8. fxe4 {[%clk 0:02:54]}  b5 {[%clk 0:02:33]} 9. Nf3 {[%clk 0:02:49]}  b4 {[%clk 0:02:32]} 10. Na4 {[%clk 0:02:50]}  Ba6 {[%clk 0:02:28]} 11. Qe3 {[%clk 0:02:50]}  Qa5 {[%clk 0:02:19]} 12. b3 {[%clk 0:02:45]}  Bb5 {[%clk 0:02:18]} 13. Ne5 {[%clk 0:02:19]}  Bxa4 {[%clk 0:02:14]} 14. bxa4 {[%clk 0:02:20]}  Qxa4 {[%clk 0:02:08]} 15. Bc4 {[%clk 0:02:20]}  Nbd7 {[%clk 0:02:06]} 16. h3 {[%clk 0:02:05]}  Nb6 {[%clk 0:01:59]} 17. Bb3 {[%clk 0:01:57]}  Qb5 {[%clk 0:01:50]} 18. Qd3 {[%clk 0:01:36]}  a5 {[%clk 0:01:44]} 19. Qxb5 {[%clk 0:01:26]}  cxb5 {[%clk 0:01:45]} 20. Nc6 {[%clk 0:01:27]}  Rfe8 {[%clk 0:01:29]} 21. Bc7 {[%clk 0:01:19]}  a4 {[%clk 0:01:07]} 22. Bxb6 {[%clk 0:01:07]}  axb3 {[%clk 0:01:07]} 23. Nxb4 {[%clk 0:01:08]}  bxc2 {[%clk 0:00:55]} 24. Kxc2 {[%clk 0:01:04]}  Nxe4 {[%clk 0:00:55]} 25. Rhe1 {[%clk 0:01:04]}  Rec8+ {[%clk 0:00:46]} 26. Kb2 {[%clk 0:01:00]}  Nc3 {[%clk 0:00:43]} 27. Kb3 {[%clk 0:00:47]}  Na4 {[%clk 0:00:25]} 28. Nd5 {[%clk 0:00:42]}  Bf8 {[%clk 0:00:15]} 29. Bc5 {[%clk 0:00:18]}  Nxc5+ {[%clk 0:00:15]} 30. dxc5 {[%clk 0:00:19]}  Rxc5 {[%clk 0:00:15]} 31. Nxe7+ {[%clk 0:00:19]}  Bxe7 {[%clk 0:00:15]} 32. Rxe7 {[%clk 0:00:19]}  Rf5 {[%clk 0:00:15]} 33. Rd2 {[%clk 0:00:17]}  h5 {[%clk 0:00:14]} 34. Re4 {[%clk 0:00:17]}  Rf1 {[%clk 0:00:13]} 35. Re5 {[%clk 0:00:13]}  Rb1+ {[%clk 0:00:11]} 36. Kc3 {[%clk 0:00:13]}  Ra3+ {[%clk 0:00:10]} 37. Kd4 {[%clk 0:00:13]}  Rb4+ {[%clk 0:00:10]} 38. Kc5 {[%clk 0:00:13]}  Rb1 {[%clk 0:00:10]} 39. Re7 {[%clk 0:00:11]}  Rc3+ {[%clk 0:00:08]} 40. Kb6 {[%clk 0:00:07]}  Rc8 {[%clk 0:00:08]} 41. Rf2 {[%clk 0:00:05]}  Rf8 {[%clk 0:00:09]} 42. Kc5 {[%clk 0:00:04]}  b4 {[%clk 0:00:08]} 43. Kc4 {[%clk 0:00:04]}  Rc8+ {[%clk 0:00:09]} 44. Kb5 {[%clk 0:00:04]}  Rb8+ {[%clk 0:00:08]} 45. Kc4 {[%clk 0:00:04]}  Rc8+ {[%clk 0:00:08]} 46. Kd4 {[%clk 0:00:05]}  Rf8 {[%clk 0:00:09]} 47. Kc4 {[%clk 0:00:05]}  Kg7 {[%clk 0:00:08]} 48. Rd7 {[%clk 0:00:05]}  Rc8+ {[%clk 0:00:08]} 49. Kd4 {[%clk 0:00:05]}  Rf8 {[%clk 0:00:08]} 50. Kc5 {[%clk 0:00:05]}  Rc8+ {[%clk 0:00:08]} 51. Kd4 {[%clk 0:00:05]}  Rf8 {[%clk 0:00:09]} 52. Rc7 {[%clk 0:00:05]}  h4 {[%clk 0:00:09]} 53. Kc4 {[%clk 0:00:05]}  g5 {[%clk 0:00:09]} 54. Rc5 {[%clk 0:00:04]}  Kg6 {[%clk 0:00:09]} 55. Rc6+ {[%clk 0:00:05]}  f6 {[%clk 0:00:09]} 56. Rb6 {[%clk 0:00:05]}  Rc8+ {[%clk 0:00:09]} 57. Kd4 {[%clk 0:00:05]}  Rd1+ {[%clk 0:00:09]} 58. Ke3 {[%clk 0:00:04]}  Re8+ {[%clk 0:00:09]} 59. Kf3 {[%clk 0:00:02]}  Rd3+ {[%clk 0:00:09]} 60. Kg4 {[%clk 0:00:02]}  Re4+ {[%clk 0:00:10]} 61. Rf4 {[%clk 0:00:03]}  Rxf4# {[%clk 0:00:10]} 0-1


[Site "https://www.chess.com"]

[Event "Titled Tuesday Blitz October 25 Early 2022"]
[White "Eljanov, Pavel"]
[Black "Al Hosani, Omran"]
[WhiteFideId "14102951"]
[BlackFideId "9308733"]
[WhiteElo "2601"]
[BlackElo "2167"]
[Result "1-0"]
[Round "05"]
[TimeControl "180+1"]
[Date "2022.10.25"]
[WhiteClock "0:01:09"]
[BlackClock "0:00:29"]

1. c4 {[%clk 0:03:00]}  e5 {[%clk 0:02:59]} 2. Nc3 {[%clk 0:02:59]}  Nf6 {[%clk 0:03:00]} 3. g3 {[%clk 0:02:57]}  d5 {[%clk 0:02:59]} 4. cxd5 {[%clk 0:02:57]}  Nxd5 {[%clk 0:03:00]} 5. Bg2 {[%clk 0:02:57]}  Nb6 {[%clk 0:03:01]} 6. b3 {[%clk 0:02:58]}  Be7 {[%clk 0:03:01]} 7. Bb2 {[%clk 0:02:58]}  O-O {[%clk 0:03:01]} 8. Nf3 {[%clk 0:02:58]}  Nc6 {[%clk 0:03:01]} 9. O-O {[%clk 0:02:59]}  Be6 {[%clk 0:03:00]} 10. Rc1 {[%clk 0:02:55]}  a6 {[%clk 0:02:58]} 11. Ne4 {[%clk 0:02:52]}  Nd7 {[%clk 0:02:58]} 12. d4 {[%clk 0:02:36]}  exd4 {[%clk 0:02:55]} 13. Nxd4 {[%clk 0:02:32]}  Nxd4 {[%clk 0:02:52]} 14. Qxd4 {[%clk 0:02:32]}  f6 {[%clk 0:02:47]} 15. Ng5 {[%clk 0:02:21]}  Nc5 {[%clk 0:02:21]} 16. Rxc5 {[%clk 0:01:50]}  Qxd4 {[%clk 0:02:09]} 17. Bxd4 {[%clk 0:01:50]}  Bxc5 {[%clk 0:02:03]} 18. Nxe6 {[%clk 0:01:48]}  Bxd4 {[%clk 0:02:04]} 19. Nxd4 {[%clk 0:01:49]}  c6 {[%clk 0:02:04]} 20. Bh3 {[%clk 0:01:42]}  Rfd8 {[%clk 0:02:02]} 21. e3 {[%clk 0:01:36]}  Kf7 {[%clk 0:01:58]} 22. Rc1 {[%clk 0:01:36]}  g6 {[%clk 0:01:57]} 23. b4 {[%clk 0:01:31]}  f5 {[%clk 0:01:55]} 24. Bf1 {[%clk 0:01:31]}  a5 {[%clk 0:01:53]} 25. b5 {[%clk 0:01:31]}  cxb5 {[%clk 0:01:53]} 26. Rc7+ {[%clk 0:01:30]}  Kf6 {[%clk 0:01:53]} 27. Bxb5 {[%clk 0:01:27]}  h6 {[%clk 0:01:35]} 28. h4 {[%clk 0:01:24]}  Rab8 {[%clk 0:01:23]} 29. a4 {[%clk 0:01:19]}  g5 {[%clk 0:01:16]} 30. Rc5 {[%clk 0:01:17]}  f4 {[%clk 0:01:16]} 31. gxf4 {[%clk 0:01:16]}  gxf4 {[%clk 0:01:16]} 32. Rf5+ {[%clk 0:01:16]}  Kg6 {[%clk 0:01:15]} 33. Rxf4 {[%clk 0:01:16]}  Rf8 {[%clk 0:01:13]} 34. Bd3+ {[%clk 0:01:14]}  Kh5 {[%clk 0:01:06]} 35. Nf5 {[%clk 0:01:13]}  Kg6 {[%clk 0:00:40]} 36. Rg4+ {[%clk 0:01:13]}  Kf6 {[%clk 0:00:40]} 37. Nxh6 {[%clk 0:01:13]}  Rfd8 {[%clk 0:00:37]} 38. Rg6+ {[%clk 0:01:13]}  Ke7 {[%clk 0:00:35]} 39. Bc4 {[%clk 0:01:10]}  Rdc8 {[%clk 0:00:30]} 40. Nf5+ {[%clk 0:01:09]}  Kd7 {[%clk 0:00:29]} 41. Be6+ {[%clk 0:01:09]} 1-0


[Site "https://www.chess.com"]

[Event "Titled Tuesday Blitz October 25 Early 2022"]
[White "Fernandez Guillen, Ernesto J."]
[Black "Predke, Alexandr"]
[WhiteFideId "3512428"]
[BlackFideId "24107581"]
[WhiteElo "2422"]
[BlackElo "2614"]
[Result "1-0"]
[Round "05"]
[TimeControl "180+1"]
[Date "2022.10.25"]
[WhiteClock "0:00:28"]
[BlackClock "0:00:06"]

1. e4 {[%clk 0:02:59]}  c5 {[%clk 0:02:53]} 2. Nf3 {[%clk 0:02:59]}  e6 {[%clk 0:02:54]} 3. d4 {[%clk 0:02:59]}  cxd4 {[%clk 0:02:54]} 4. Nxd4 {[%clk 0:03:00]}  Nc6 {[%clk 0:02:55]} 5. Nc3 {[%clk 0:03:00]}  Qc7 {[%clk 0:02:55]} 6. Be3 {[%clk 0:03:00]}  a6 {[%clk 0:02:55]} 7. Qd2 {[%clk 0:03:01]}  Nxd4 {[%clk 0:02:54]} 8. Bxd4 {[%clk 0:03:00]}  b5 {[%clk 0:02:52]} 9. O-O-O {[%clk 0:02:58]}  f6 {[%clk 0:02:39]} 10. Kb1 {[%clk 0:02:51]}  Nh6 {[%clk 0:02:37]} 11. Bd3 {[%clk 0:02:31]}  Nf7 {[%clk 0:02:35]} 12. f4 {[%clk 0:02:31]}  Bc5 {[%clk 0:02:24]} 13. Bxc5 {[%clk 0:02:26]}  Qxc5 {[%clk 0:02:25]} 14. e5 {[%clk 0:02:18]}  f5 {[%clk 0:02:25]} 15. g4 {[%clk 0:02:12]}  g6 {[%clk 0:02:24]} 16. gxf5 {[%clk 0:02:11]}  gxf5 {[%clk 0:02:25]} 17. Rhg1 {[%clk 0:02:11]}  b4 {[%clk 0:02:08]} 18. Na4 {[%clk 0:02:09]}  Qa5 {[%clk 0:01:30]} 19. b3 {[%clk 0:02:09]}  Rb8 {[%clk 0:01:30]} 20. Rg7 {[%clk 0:02:05]}  Kf8 {[%clk 0:01:06]} 21. Rdg1 {[%clk 0:02:04]}  Bb7 {[%clk 0:01:03]} 22. Qe2 {[%clk 0:01:43]}  h5 {[%clk 0:00:58]} 23. Qf2 {[%clk 0:01:37]}  Bc6 {[%clk 0:00:52]} 24. Qh4 {[%clk 0:01:22]}  Qd8 {[%clk 0:00:49]} 25. Qg3 {[%clk 0:01:19]}  Nh6 {[%clk 0:00:26]} 26. Qg6 {[%clk 0:01:05]}  Qh4 {[%clk 0:00:08]} 27. Kb2 {[%clk 0:00:37]}  a5 {[%clk 0:00:07]} 28. Qxh6 {[%clk 0:00:28]}  Rxh6 {[%clk 0:00:06]} 29. Rg8+ {[%clk 0:00:28]} 1-0


[Site "https://www.chess.com"]

[Event "Titled Tuesday Blitz October 25 Early 2022"]
[White "Hasangatin, Ramil"]
[Black "Bacrot, Etienne"]
[WhiteFideId "4122160"]
[BlackFideId "605506"]
[WhiteElo "2358"]
[BlackElo "2666"]
[Result "1-0"]
[Round "05"]
[TimeControl "180+1"]
[Date "2022.10.25"]
[WhiteClock "0:02:56"]
[BlackClock "0:01:45"]

1. e4 {[%clk 0:03:00]}  c5 {[%clk 0:02:59]} 2. Nf3 {[%clk 0:03:00]}  d6 {[%clk 0:02:59]} 3. d4 {[%clk 0:03:00]}  cxd4 {[%clk 0:02:59]} 4. Qxd4 {[%clk 0:03:01]}  Nf6 {[%clk 0:02:58]} 5. e5 {[%clk 0:03:01]}  Nc6 {[%clk 0:02:55]} 6. Bb5 {[%clk 0:03:01]}  Qa5+ {[%clk 0:02:47]} 7. Nc3 {[%clk 0:03:01]}  Qxb5 {[%clk 0:02:47]} 8. Nxb5 {[%clk 0:03:02]}  Nxd4 {[%clk 0:02:47]} 9. Nfxd4 {[%clk 0:03:02]}  dxe5 {[%clk 0:02:45]} 10. Nc7+ {[%clk 0:03:03]}  Kd7 {[%clk 0:02:30]} 11. Nxa8 {[%clk 0:03:04]}  exd4 {[%clk 0:02:29]} 12. Bf4 {[%clk 0:03:02]}  Nd5 {[%clk 0:02:29]} 13. O-O-O {[%clk 0:03:01]}  Nxf4 {[%clk 0:01:45]} 14. Rxd4+ {[%clk 0:03:01]}  Kc6 {[%clk 0:01:45]} 15. Rc4+ {[%clk 0:02:56]} 1-0


[Site "https://www.chess.com"]